bitfinex/quotes_BTCUSD_20251027
["timestamp","ask_amount","ask_price","bid_price","bid_amount"]
[1761560553689,0.60570898,115400.0,115390.0,0.38092]
[1761560554616,0.60570898,115400.0,115390.0,0.3814053]
[1761560555478,0.60870898,115400.0,115390.0,0.3814053]
[1761560556550,0.60970898,115400.0,115390.0,0.3814053]
[1761560557973,0.61820333,115400.0,115390.0,0.3814053]
[1761560558188,0.69821966,115400.0,115390.0,0.3814053]
[1761560558595,0.61820333,115400.0,115390.0,0.3814053]
[1761560565564,0.17732349,115400.0,115390.0,0.3814053]
[1761560565773,0.61818133,115400.0,115390.0,0.3814053]
[1761560571388,0.17732349,115400.0,115390.0,0.3814053]
[1761560571604,0.17731022,115400.0,115390.0,0.3814053]
[1761560572462,0.17731022,115400.0,115390.0,0.55473054]
[1761560573559,0.17731022,115400.0,115390.0,0.3814053]
[1761560574557,0.17731022,115400.0,115390.0,0.55473054]
[1761560574760,0.004,115400.0,115390.0,0.55473054]
[1761560575144,0.004,115400.0,115390.0,0.64454955]
[1761560578113,0.0609024,115400.0,115390.0,0.64454955]
[1761560579328,0.61434545,115410.0,115390.0,0.64454955]
[1761560580742,0.17331022,115400.0,115390.0,0.64454955]
[1761560581415,0.61734545,115410.0,115390.0,0.64454955]
[1761560581624,0.61834545,115410.0,115390.0,0.64454955]
[1761560582020,0.61734545,115410.0,115390.0,0.64454955]
[1761560582208,0.18495996,115410.0,115390.0,0.64454955]
[1761560582427,0.19307471,115410.0,115390.0,0.64454955]
[1761560582954,0.17331022,115400.0,115390.0,0.64454955]
[1761560585397,0.17431022,115400.0,115390.0,0.64454955]
[1761560586940,0.60669571,115400.0,115390.0,0.2291653]
[1761560587161,0.60669571,115400.0,115390.0,0.3814053]
[1761560587882,0.17431022,115400.0,115390.0,0.3814053]
[1761560589115,0.60669571,115400.0,115390.0,0.3814053]
[1761560593770,0.66095156,115400.0,115390.0,0.3814053]
[1761560597838,0.66095156,115400.0,115390.0,0.55473054]
[1761560598041,0.66095156,115400.0,115390.0,0.3814053]
[1761560598255,0.66906804,115400.0,115390.0,0.3814053]
[1761560600642,0.66906804,115400.0,115390.0,0.55473054]
[1761560600857,0.66095156,115400.0,115390.0,0.55473054]
[1761560601347,0.66906968,115400.0,115390.0,0.55473054]
[1761560601769,0.18242834,115400.0,115390.0,0.55473054]
[1761560601980,0.17431022,115400.0,115390.0,0.55473054]
[1761560602193,0.66095156,115400.0,115390.0,0.55473054]
[1761560606315,0.66907024,115400.0,115390.0,0.55473054]
[1761560611563,0.1824289,115400.0,115390.0,0.55473054]
[1761560611762,0.66907024,115400.0,115390.0,0.55473054]
[1761560612307,0.66907024,115400.0,115390.0,0.3814053]
[1761560612508,0.66907024,115400.0,115390.0,0.55473054]
[1761560612686,0.66907024,115400.0,115390.0,0.3814053]
[1761560615633,0.66907024,115400.0,115390.0,0.55473054]
[1761560617306,0.1824289,115400.0,115390.0,0.55473054]
[1761560617729,0.66907024,115400.0,115390.0,0.55473054]
[1761560620909,0.66907403,115400.0,115390.0,0.55473054]
[1761560624906,0.18243269,115400.0,115390.0,0.55473054]
[1761560625194,0.66907403,115400.0,115390.0,0.55473054]
[1761560636320,0.66907403,115400.0,115390.0,0.3814053]
[1761560636529,0.66907403,115400.0,115390.0,0.55473054]
[1761560636767,0.6690736,115400.0,115390.0,0.55473054]
[1761560641634,0.18243226,115400.0,115390.0,0.55473054]
[1761560641890,0.6690736,115400.0,115390.0,0.55473054]
[1761560644022,0.18243226,115400.0,115390.0,0.55473054]
[1761560644226,0.6690736,115400.0,115390.0,0.55473054]
[1761560644863,0.69507796,115400.0,115390.0,0.55473054]
[1761560645080,0.6690736,115400.0,115390.0,0.55473054]
[1761560647993,0.18243226,115400.0,115390.0,0.55473054]
[1761560648208,0.6690736,115400.0,115390.0,0.55473054]
[1761560649723,0.18243226,115400.0,115390.0,0.55473054]
[1761560649922,0.6690736,115400.0,115390.0,0.55473054]
[1761560651624,0.18243226,115400.0,115390.0,0.55473054]
[1761560651817,0.6690736,115400.0,115390.0,0.55473054]
[1761560655477,0.69507796,115400.0,115390.0,0.55473054]
[1761560655817,0.20843662,115400.0,115390.0,0.55473054]
[1761560661351,0.18243226,115400.0,115390.0,0.55473054]
[1761560662094,0.61497196,115400.0,115390.0,0.55473054]
[1761560663909,0.61497196,115400.0,115390.0,0.3814053]
[1761560664564,0.64097706,115400.0,115390.0,0.3814053]
[1761560672833,0.64097706,115400.0,115390.0,0.0004853]
[1761560673036,0.64097706,115400.0,115390.0,0.3813653]
[1761560677488,0.67157202,115400.0,115390.0,0.3813653]
[1761560678760,0.64097706,115400.0,115390.0,0.3813653]
[1761560689805,0.98097706,115400.0,115390.0,0.3813653]
[1761560690013,0.99969191,115400.0,115390.0,0.3813653]
[1761560690428,0.98097706,115400.0,115390.0,0.3813653]
[1761560693115,0.98097288,115400.0,115390.0,0.3813653]
[1761560693531,1.02416392,115400.0,115390.0,0.3813653]
[1761560693735,0.59162422,115400.0,115390.0,0.3813653]
[1761560693938,1.02416392,115400.0,115390.0,0.3813653]
[1761560696431,0.98097288,115400.0,115390.0,0.3813653]
[1761560707842,0.54843318,115400.0,115390.0,0.3813653]
[1761560707987,0.20843318,115400.0,115390.0,0.3813653]
[1761560708193,0.18242808,115400.0,115390.0,0.55469054]
[1761560709039,0.18242808,115400.0,115390.0,0.58069384]
[1761560709980,0.18242808,115400.0,115390.0,0.4073686]
[1761560710181,0.18242808,115400.0,115390.0,0.58069384]
[1761560711847,0.00911786,115400.0,115390.0,0.58069384]
[1761560712057,0.18242808,115400.0,115390.0,0.58069384]
[1761560712468,0.00911786,115400.0,115390.0,0.58069384]
[1761560712672,0.18242808,115400.0,115390.0,0.58069384]
[1761560718946,0.00911786,115400.0,115390.0,0.58069384]
[1761560719169,0.001,115400.0,115390.0,1.15708505]
[1761560719596,0.001,115400.0,115390.0,1.36504505]
[1761560720031,0.001,115400.0,115390.0,0.87847285]
[1761560720248,0.001,115400.0,115390.0,1.36504505]
[1761560724810,0.001,115400.0,115390.0,1.40122733]
[1761560726307,0.001,115400.0,115390.0,1.40622733]
[1761560726717,0.001,115400.0,115390.0,1.40122733]
[1761560726923,0.001,115400.0,115390.0,1.40922733]
[1761560727472,0.65985253,115420.0,115410.0,0.1732952]
[1761560727674,0.65985253,115420.0,115410.0,0.41519421]
[1761560728261,0.65985253,115420.0,115410.0,0.44119179]
[1761560728693,0.65985253,115420.0,115410.0,0.28911179]
[1761560728901,0.65985253,115420.0,115410.0,0.66991179]
[1761560729102,0.65985253,115420.0,115410.0,0.67291179]
[1761560729317,0.65985253,115420.0,115410.0,0.58309278]
[1761560731964,0.65985253,115420.0,115410.0,0.20229278]
[1761560732167,0.65985253,115420.0,115410.0,0.58309278]
[1761560735459,0.65985253,115420.0,115410.0,0.52761278]
[1761560735663,0.65985253,115420.0,115410.0,0.58305278]
[1761560735893,0.19043932,115430.0,115410.0,0.58305278]
[1761560736099,0.4865722,115420.0,115410.0,0.58305278]
[1761560736365,0.49467309,115420.0,115410.0,0.5570552]
[1761560736782,0.49467309,115420.0,115410.0,0.58305474]
[1761560736989,0.00810089,115420.0,115410.0,0.58305474]
[1761560737252,0.36599954,115440.0,115420.0,0.17328019]
[1761560737477,1.00792677,115440.0,115430.0,0.32534518]
[1761560737702,0.52135457,115440.0,115430.0,0.32534518]
[1761560738142,0.52135283,115440.0,115430.0,0.35134172]
[1761560738782,0.52435112,115440.0,115430.0,0.35134172]
[1761560738970,1.01192332,115440.0,115430.0,0.35134172]
[1761560740109,0.004,115440.0,115430.0,0.92773293]
[1761560740981,0.66852045,115460.0,115440.0,0.1732361]
[1761560741201,1.01661569,115460.0,115450.0,0.20752]
[1761560741416,1.01661569,115460.0,115450.0,0.38075516]
[1761560741852,1.02509606,115460.0,115450.0,0.4067478]
[1761560742247,1.02509606,115460.0,115450.0,0.23351264]
[1761560742575,0.53004349,115460.0,115450.0,0.4067478]
[1761560742781,1.01661569,115460.0,115450.0,0.4067478]
[1761560743207,1.01661569,115460.0,115450.0,0.23351264]
[1761560743631,1.02521079,115460.0,115450.0,0.23351264]
[1761560744293,1.01661569,115460.0,115450.0,0.23351264]
[1761560744501,1.01761569,115460.0,115450.0,0.4067478]
[1761560744709,1.01761569,115460.0,115450.0,0.23351264]
[1761560745334,1.02645983,115460.0,115450.0,0.23351264]
[1761560745613,1.01761569,115460.0,115450.0,0.23351264]
[1761560746231,1.01761569,115460.0,115450.0,0.38075516]
[1761560746681,0.19104349,115460.0,115450.0,0.38075516]
[1761560746897,0.00909524,115460.0,115450.0,0.38075516]
[1761560747969,0.00809524,115460.0,115450.0,0.38075516]
[1761560748808,0.00809524,115460.0,115450.0,0.38375516]
[1761560749458,0.00808368,115460.0,115450.0,0.38375516]
[1761560752265,0.66787604,115460.0,115450.0,0.17623516]
[1761560752476,0.66787604,115460.0,115450.0,0.55687516]
[1761560754481,0.66787604,115460.0,115450.0,0.38364]
[1761560754705,0.66787604,115460.0,115450.0,0.55687516]
[1761560756650,0.66787604,115460.0,115450.0,0.17623516]
[1761560757057,0.66787604,115460.0,115450.0,0.55683516]
[1761560757260,0.18130384,115460.0,115450.0,0.55683516]
[1761560757476,0.66787604,115460.0,115450.0,0.55683516]
[1761560760870,0.66787604,115460.0,115450.0,0.3836]
[1761560761064,0.66787604,115460.0,115450.0,0.55683516]
[1761560761930,0.66787604,115460.0,115450.0,0.3836]
[1761560763783,0.18130384,115460.0,115450.0,0.3836]
[1761560764000,0.66787604,115460.0,115450.0,0.3836]
[1761560764881,0.69386738,115460.0,115450.0,0.3836]
[1761560769043,0.69386738,115460.0,115450.0,0.55683516]
[1761560769676,0.69386738,115460.0,115450.0,0.17623516]
[1761560769922,0.69386738,115460.0,115450.0,0.55683516]
[1761560771342,0.03407502,115460.0,115450.0,0.55683516]
[1761560771592,0.00808368,115460.0,115450.0,0.55683516]
[1761560771793,0.18130384,115460.0,115450.0,0.55683516]
[1761560771915,0.00808368,115460.0,115450.0,0.55683516]
[1761560772759,0.18130384,115460.0,115450.0,0.55683516]
[1761560773774,0.66787604,115460.0,115450.0,0.55683516]
[1761560774220,0.66787604,115460.0,115450.0,0.3836]
[1761560774446,0.66787604,115460.0,115450.0,0.55683516]
[1761560777926,0.18130384,115460.0,115450.0,0.55683516]
[1761560783187,0.18130384,115460.0,115450.0,0.3836]
[1761560783328,0.6134232,115460.0,115450.0,0.2316]
[1761560783536,0.6134232,115460.0,115450.0,0.3836]
[1761560783838,0.63941411,115460.0,115450.0,0.3836]
[1761560785633,0.63941411,115460.0,115450.0,0.55683516]
[1761560785634,0.20729475,115460.0,115450.0,0.55683516]
[1761560785869,0.20729475,115460.0,115450.0,0.3836]
[1761560786515,0.63941411,115460.0,115450.0,0.3836]
[1761560788876,0.63941411,115460.0,115450.0,0.55683516]
[1761560791049,0.63941411,115460.0,115450.0,0.3836]
[1761560794319,0.20729475,115460.0,115450.0,0.3836]
[1761560794532,0.63941411,115460.0,115450.0,0.3836]
[1761560800227,0.20729475,115460.0,115450.0,0.3836]
[1761560800454,0.63941411,115460.0,115450.0,0.3836]
[1761560801132,0.63941411,115460.0,115450.0,0.55683516]
[1761560801359,0.63941411,115460.0,115450.0,0.3836]
[1761560801574,0.63941411,115460.0,115450.0,0.55683516]
[1761560801993,0.63941411,115460.0,115450.0,0.3836]
[1761560802200,0.20729475,115460.0,115450.0,0.3836]
[1761560802632,0.20729475,115460.0,115450.0,0.55683516]
[1761560808010,0.20729475,115460.0,115450.0,0.3836]
[1761560808580,0.63941411,115460.0,115450.0,0.3836]
[1761560809887,0.63941411,115460.0,115450.0,0.55683516]
[1761560810139,0.63941411,115460.0,115450.0,0.3836]
[1761560810353,0.63941411,115460.0,115450.0,0.55683516]
[1761560810890,0.20729475,115460.0,115450.0,0.55683516]
[1761560811186,0.63941411,115460.0,115450.0,0.55683516]
[1761560811447,0.63941411,115460.0,115450.0,0.3836]
[1761560811602,0.63941411,115460.0,115450.0,0.55683516]
[1761560812247,0.63944733,115460.0,115450.0,0.55683516]
[1761560812454,0.63944733,115460.0,115450.0,0.3836]
[1761560813381,0.63944733,115460.0,115450.0,0.55683516]
[1761560814355,0.63944733,115460.0,115450.0,0.3836]
[1761560815716,0.63944733,115460.0,115450.0,0.55683516]
[1761560820205,0.63944733,115460.0,115450.0,0.3836]
[1761560820448,0.63944733,115460.0,115450.0,0.55683516]
[1761560822088,0.63944733,115460.0,115450.0,0.3836]
[1761560824353,0.61345642,115460.0,115450.0,0.3836]
[1761560824843,0.60533952,115460.0,115450.0,0.3836]
[1761560825040,0.61345697,115460.0,115450.0,0.3836]
[1761560825479,0.61345697,115460.0,115450.0,0.55683516]
[1761560825992,0.18133761,115460.0,115450.0,0.55683516]
[1761560831684,0.18133761,115460.0,115450.0,0.3836]
[1761560832197,0.61345697,115460.0,115450.0,0.3836]
[1761560837724,0.66753055,115460.0,115450.0,0.3836]
[1761560837937,0.75533872,115460.0,115450.0,0.3836]
[1761560838142,1.69005736,115460.0,115450.0,0.003]
[1761560838354,1.69005736,115460.0,115450.0,0.38356]
[1761560838527,1.14205225,115460.0,115450.0,0.38356]
[1761560839143,1.14205225,115460.0,115450.0,0.38056]
[1761560839521,1.14805225,115460.0,115450.0,0.38056]
[1761560845411,1.65045157,115460.0,115450.0,0.38056]
[1761560845614,1.65040315,115460.0,115450.0,0.38056]
[1761560849643,1.72055751,115460.0,115450.0,0.38056]
[1761560850496,0.67801727,115460.0,115450.0,0.38056]
[1761560850702,1.16421021,115460.0,115450.0,0.38056]
[1761560851556,1.14800383,115460.0,115450.0,0.38056]
[1761560855556,0.66181089,115460.0,115450.0,0.38056]
[1761560855769,1.14800383,115460.0,115450.0,0.38056]
[1761560856508,1.1479837,115460.0,115450.0,0.38056]
[1761560862253,1.16418657,115460.0,115450.0,0.38056]
[1761560863026,0.67799363,115460.0,115450.0,0.38056]
[1761560863261,1.16418657,115460.0,115450.0,0.38056]
[1761560866361,1.18756781,115460.0,115450.0,0.38056]
[1761560866576,1.16418657,115460.0,115450.0,0.38056]
[1761560866788,1.13988638,115460.0,115450.0,0.38056]
[1761560866996,1.16421207,115460.0,115450.0,0.38056]
[1761560867338,1.18759331,115460.0,115450.0,0.38056]
[1761560877271,1.18759331,115460.0,115420.0,0.18194382]
[1761560877272,0.17326518,115430.0,115420.0,0.18194382]
[1761560877493,0.17326518,115430.0,115420.0,0.56254382]
[1761560877671,0.17326518,115430.0,115420.0,0.77042382]
[1761560878797,0.17326518,115430.0,115420.0,0.77342382]
[1761560879172,0.65945812,115430.0,115420.0,0.77342382]
[1761560881663,0.17326518,115430.0,115420.0,0.77342382]
[1761560883205,0.17326518,115430.0,115420.0,0.56554382]
[1761560887629,0.68545326,115440.0,115420.0,0.56554382]
[1761560887862,0.17326518,115430.0,115420.0,0.56554382]
[1761560888031,0.17326518,115430.0,115420.0,0.77342382]
[1761560888600,0.17326518,115430.0,115420.0,0.77042382]
[1761560889005,0.17326518,115430.0,115420.0,0.77342382]
[1761560889462,0.17326518,115430.0,115420.0,0.77042382]
[1761560889963,0.17326518,115430.0,115420.0,0.77342382]
[1761560891289,0.68545326,115440.0,115420.0,0.77342382]
[1761560891518,0.69357243,115440.0,115420.0,0.77342382]
[1761560892014,0.17326518,115430.0,115420.0,0.77342382]
[1761560892171,0.17326518,115430.0,115420.0,0.77042382]
[1761560892579,0.17326518,115430.0,115420.0,0.77342382]
[1761560894202,0.17326518,115430.0,115420.0,0.77042382]
[1761560894507,0.17326518,115430.0,115420.0,0.56554382]
[1761560903017,0.17326518,115430.0,115420.0,0.3836]
[1761560903207,0.17326518,115430.0,115420.0,0.55688019]
[1761560903406,0.17326518,115430.0,115420.0,0.3836]
[1761560907517,0.17326518,115430.0,115420.0,0.003]
[1761560907735,0.17326518,115430.0,115420.0,0.38356]
[1761560910530,0.18138557,115430.0,115420.0,0.38356]
[1761560912210,0.17326518,115430.0,115420.0,0.38356]
[1761560913528,0.17326518,115430.0,115420.0,0.55684019]
[1761560913685,0.17326518,115430.0,115420.0,0.38356]
[1761560915930,0.17326518,115430.0,115420.0,0.55684019]
[1761560916698,0.17326518,115430.0,115420.0,0.38356]
[1761560916896,0.17326518,115430.0,115420.0,0.003]
[1761560917103,0.17326518,115430.0,115420.0,0.38356]
[1761560920193,0.17326518,115430.0,115420.0,0.55684019]
[1761560920746,0.17326518,115430.0,115420.0,0.38356]
[1761560921741,0.17326518,115430.0,115420.0,0.003]
[1761560921991,0.17326518,115430.0,115420.0,0.55684019]
[1761560924137,0.17326518,115430.0,115420.0,0.38356]
[1761560925521,0.17326518,115430.0,115420.0,0.55684019]
[1761560926004,0.17326518,115430.0,115420.0,0.38356]
[1761560926341,0.17326518,115430.0,115420.0,0.55684019]
[1761560927059,0.17326518,115430.0,115420.0,0.38356]
[1761560927261,0.19926276,115430.0,115420.0,0.38356]
[1761560928436,0.53926276,115430.0,115420.0,0.38356]
[1761560928656,0.97964704,115430.0,115420.0,0.003]
[1761560928859,0.97964704,115430.0,115420.0,0.38356]
[1761560929940,0.98064704,115430.0,115420.0,0.38356]
[1761560930123,0.98064704,115430.0,115420.0,0.38056]
[1761560930495,0.98364704,115430.0,115420.0,0.38056]
[1761560933736,0.55138231,115430.0,115420.0,0.38056]
[1761560933951,0.98364704,115430.0,115420.0,0.38056]
[1761560935722,0.55138231,115430.0,115420.0,0.38056]
[1761560935977,0.98364704,115430.0,115420.0,0.38056]
[1761560941459,0.55138231,115430.0,115420.0,0.38056]
[1761560941660,0.98364704,115430.0,115420.0,0.38056]
[1761560942498,0.55138231,115430.0,115420.0,0.38056]
[1761560942698,0.98364704,115430.0,115420.0,0.38056]
[1761560944532,0.98363625,115430.0,115420.0,0.38056]
[1761560945167,0.55137152,115430.0,115420.0,0.38056]
[1761560945394,0.98363625,115430.0,115420.0,0.38056]
[1761560949170,0.03810634,115430.0,115420.0,0.55384019]
[1761560949379,0.004,115430.0,115420.0,1.10191829]
[1761560949586,0.004,115430.0,115420.0,0.66965356]
[1761560950191,0.001,115430.0,115420.0,0.66965356]
[1761560950623,0.001,115430.0,115420.0,0.67265356]
[1761560950826,0.001,115430.0,115420.0,1.14110057]
[1761560951087,0.001,115430.0,115420.0,1.13810057]
[1761560951287,0.20789217,115450.0,115440.0,0.17325017]
[1761560951476,0.03465604,115450.0,115440.0,0.32517017]
[1761560951686,0.51317174,115460.0,115440.0,0.32517017]
[1761560951882,0.95354036,115460.0,115450.0,0.05544]
[1761560952079,0.97953285,115460.0,115450.0,0.05544]
[1761560954633,0.98053285,115460.0,115450.0,0.05544]
[1761560955989,0.54826812,115460.0,115450.0,0.05544]
[1761560956308,0.98053285,115460.0,115450.0,0.05544]
[1761560956533,0.98053285,115460.0,115450.0,0.24599867]
[1761560956534,0.001,115460.0,115450.0,0.24599867]
[1761560956749,0.001,115460.0,115450.0,0.25466503]
[1761560957430,0.001,115460.0,115450.0,0.22867516]
[1761560957678,0.20795143,115470.0,115460.0,0.17322016]
[1761560957918,0.02613527,115470.0,115460.0,0.32510016]
[1761560958148,0.19934043,115470.0,115460.0,0.32510016]
[1761560958371,0.02613527,115470.0,115460.0,0.32510016]
[1761560958779,0.02713527,115470.0,115460.0,0.32510016]
[1761560959238,0.0011454,115470.0,115460.0,0.41491917]
[1761560959455,0.0001454,115470.0,115460.0,0.41491917]
[1761560959896,0.0001454,115470.0,115460.0,0.92677125]
[1761560960181,0.0001454,115470.0,115460.0,0.96595353]
[1761560960384,0.0001454,115470.0,115460.0,0.477087]
[1761560960826,0.0001454,115470.0,115460.0,0.44090472]
[1761560961931,0.0001454,115470.0,115460.0,0.82694472]
[1761560962142,0.0001454,115470.0,115460.0,0.87734472]
[1761560962606,0.0001454,115470.0,115460.0,0.88034472]
[1761560963571,0.0001454,115470.0,115460.0,0.29202472]
[1761560963825,0.0001454,115470.0,115460.0,0.88034472]
[1761560967745,0.0001454,115470.0,115460.0,0.88022472]
[1761560969614,0.48601193,115470.0,115460.0,0.82482472]
[1761560969817,0.65921709,115470.0,115460.0,0.76442016]
[1761560970218,0.68520381,115470.0,115460.0,0.76442016]
[1761560970415,0.19933728,115470.0,115460.0,0.76442016]
[1761560970620,0.68520381,115470.0,115460.0,0.76442016]
[1761560970791,0.68520381,115470.0,115460.0,0.17622016]
[1761560971013,0.68520381,115470.0,115460.0,0.76442016]
[1761560971264,0.68520381,115470.0,115460.0,0.53586016]
[1761560971464,0.68520381,115470.0,115460.0,0.76442016]
[1761560971645,0.68520381,115470.0,115460.0,0.5912]
[1761560972364,0.20740074,115470.0,115460.0,0.3834]
[1761560972699,1.1791338,115470.0,115460.0,0.3834]
[1761560973679,0.69326727,115470.0,115460.0,0.3834]
[1761560977391,0.20740074,115470.0,115460.0,0.3834]
[1761560977599,0.69326727,115470.0,115460.0,0.3834]
[1761560982686,1.1791338,115470.0,115460.0,0.3834]
[1761560983055,0.69326727,115470.0,115460.0,0.3834]
[1761560983709,1.1791338,115470.0,115460.0,0.3834]
[1761560984743,1.1791338,115470.0,115460.0,0.3804]
[1761560985699,0.17323516,115450.0,115440.0,0.38971267]
[1761560985878,0.18129862,115450.0,115440.0,0.77011267]
[1761560986084,0.00806346,115450.0,115440.0,0.77011267]
[1761560986339,0.00810072,115450.0,115440.0,0.77011267]
[1761560986722,0.18133588,115450.0,115440.0,0.77011267]
[1761560986930,0.00810072,115450.0,115440.0,0.77011267]
[1761560988894,0.00810072,115450.0,115440.0,0.77311267]
[1761560989264,0.00810072,115450.0,115440.0,1.2589792]
[1761560990233,0.00810072,115450.0,115440.0,1.34879821]
[1761560992099,0.00810072,115450.0,115440.0,0.86293168]
[1761560996725,0.00810072,115450.0,115440.0,1.34879821]
[1761560998350,0.00810072,115450.0,115440.0,0.86293168]
[1761561000326,0.18133588,115450.0,115440.0,0.86293168]
[1761561000771,0.00810072,115450.0,115440.0,0.86293168]
[1761561000988,0.18133588,115450.0,115440.0,0.86293168]
[1761561001207,0.00810072,115450.0,115440.0,0.86293168]
[1761561001731,0.66720241,115450.0,115440.0,0.2108]
[1761561001934,1.09124475,115450.0,115440.0,0.43936]
[1761561002149,1.00720241,115450.0,115440.0,0.5912]
[1761561002773,1.03319755,115450.0,115440.0,0.5912]
[1761561002977,1.03319755,115450.0,115440.0,0.5882]
[1761561003180,1.03419755,115450.0,115440.0,0.5882]
[1761561004408,1.03619755,115450.0,115440.0,0.5882]
[1761561004617,1.03620195,115450.0,115440.0,0.5882]
[1761561004823,1.03520195,115450.0,115440.0,0.5882]
[1761561005025,0.1732614,115440.0,115420.0,0.18194419]
[1761561005199,0.65912793,115440.0,115430.0,0.38044]
[1761561005870,0.65912793,115440.0,115430.0,0.55370518]
[1761561006699,0.1732614,115440.0,115430.0,0.55370518]
[1761561006899,0.65912793,115440.0,115430.0,0.38044]
[1761561007114,0.65912793,115440.0,115430.0,0.36804]
[1761561007528,1.14499446,115440.0,115430.0,0.36804]
[1761561008790,0.66012793,115440.0,115430.0,0.36804]
[1761561009208,0.17326518,115430.0,115420.0,0.3811173]
[1761561009420,0.65913171,115430.0,115420.0,0.7615973]
[1761561010453,0.65913171,115430.0,115420.0,0.7620826]
[1761561010862,0.65913171,115430.0,115420.0,0.7650826]
[1761561011677,0.17326518,115430.0,115420.0,0.7650826]
[1761561011878,0.65913171,115430.0,115420.0,0.7650826]
[1761561012219,0.65913171,115430.0,115420.0,0.76508549]
[1761561013658,0.19925762,115440.0,115420.0,0.76508549]
[1761561013891,0.68512415,115440.0,115420.0,0.76508549]
[1761561014318,0.17326518,115430.0,115420.0,0.76508549]
[1761561014707,0.17326518,115430.0,115420.0,0.76208549]
[1761561015049,0.17326518,115430.0,115420.0,0.76508549]
[1761561015328,0.17326518,115430.0,115420.0,0.76208549]
[1761561015677,0.17326518,115430.0,115420.0,0.76508549]
[1761561017721,0.68512415,115440.0,115420.0,0.76508549]
[1761561017923,0.68512415,115440.0,115430.0,0.17326518]
[1761561018132,0.68512415,115440.0,115420.0,0.76508549]
[1761561018554,0.68512415,115440.0,115420.0,0.76208549]
[1761561018972,0.68512415,115440.0,115420.0,0.76508549]
[1761561019780,0.63150956,115440.0,115420.0,0.76508549]
[1761561022539,0.17326518,115430.0,115420.0,0.76508549]
[1761561023623,0.17326518,115430.0,115420.0,0.76208549]
[1761561024059,0.17326518,115430.0,115420.0,0.76508549]
[1761561038848,0.1732614,115440.0,115420.0,0.76508549]
[1761561039065,0.17326518,115430.0,115420.0,0.70968549]
[1761561039286,0.17326518,115430.0,115420.0,0.76508549]
[1761561039996,0.17326518,115430.0,115420.0,0.76208549]
[1761561040658,0.17326518,115430.0,115420.0,0.76508549]
[1761561040875,0.17326518,115430.0,115420.0,0.76208549]
[1761561041328,0.17326518,115430.0,115420.0,0.76508549]
[1761561043604,0.17326518,115430.0,115420.0,0.5918053]
[1761561043813,0.17326518,115430.0,115420.0,0.76508549]
[1761561044386,0.60551712,115430.0,115420.0,0.5918053]
[1761561044646,0.17326518,115430.0,115420.0,0.5918053]
[1761561044847,0.60551712,115430.0,115420.0,0.5918053]
[1761561045049,0.60551712,115430.0,115420.0,0.3839653]
[1761561046117,0.61401292,115430.0,115420.0,0.3839653]
[1761561046338,0.60551712,115430.0,115420.0,0.3839653]
[1761561046762,0.17326518,115430.0,115420.0,0.3839653]
[1761561048157,0.19926242,115430.0,115420.0,0.3839653]
[1761561048377,0.20778351,115430.0,115420.0,0.3839653]
[1761561049777,0.19926242,115430.0,115420.0,0.3839653]
[1761561049979,0.63151436,115430.0,115420.0,0.3839653]
[1761561050808,0.64031373,115430.0,115420.0,0.3839653]
[1761561051008,0.64031373,115430.0,115420.0,0.3809653]
[1761561052259,0.64842817,115430.0,115420.0,0.3809653]
[1761561052613,0.64942817,115430.0,115420.0,0.3809653]
[1761561054534,0.98942817,115430.0,115420.0,0.3809653]
[1761561058737,1.07923995,115430.0,115420.0,0.3809653]
[1761561058975,1.07923995,115430.0,115420.0,0.1737253]
[1761561058976,1.09791913,115430.0,115420.0,0.1737253]
[1761561059185,1.09791913,115430.0,115420.0,0.3810453]
[1761561059913,1.09691913,115430.0,115420.0,0.3810453]
[1761561060160,1.09891913,115430.0,115420.0,0.3810453]
[1761561060343,1.18873814,115430.0,115420.0,0.3810453]
[1761561060521,1.19673814,115430.0,115420.0,0.3810453]
[1761561062970,1.21294185,115430.0,115420.0,0.3810453]
[1761561063173,1.19673814,115430.0,115420.0,0.3810453]
[1761561063379,1.1909986,115430.0,115420.0,0.3810453]
[1761561063565,1.20719853,115430.0,115420.0,0.3810453]
[1761561063979,1.11737952,115430.0,115420.0,0.3810453]
[1761561064186,1.10117959,115430.0,115420.0,0.38074543]
[1761561064395,1.11737664,115430.0,115420.0,0.38074543]
[1761561065359,1.10117959,115430.0,115420.0,0.38074543]
[1761561067054,1.11737226,115430.0,115420.0,0.38074543]
[1761561067467,1.20719127,115430.0,115420.0,0.38074543]
[1761561069506,1.27299712,115430.0,115420.0,0.38074543]
[1761561071474,1.18317811,115430.0,115420.0,0.38074543]
[1761561074999,1.10117959,115430.0,115420.0,0.38074543]
[1761561076050,1.09917959,115430.0,115420.0,0.38074543]
[1761561076409,1.09217959,115430.0,115420.0,0.38074543]
[1761561076606,1.04750317,115430.0,115420.0,0.38074543]
[1761561076784,1.05250317,115430.0,115420.0,0.38074543]
[1761561076992,0.71250317,115430.0,115420.0,0.38074543]
[1761561077188,1.05250317,115430.0,115420.0,0.38074543]
[1761561078161,1.05150317,115430.0,115420.0,0.38074543]
[1761561078378,1.04650317,115430.0,115420.0,0.38074543]
[1761561078590,1.04750317,115430.0,115420.0,0.38074543]
[1761561078812,1.04950317,115430.0,115420.0,0.38074543]
[1761561079056,0.51863285,115430.0,115420.0,0.55402562]
[1761561079245,0.17763285,115430.0,115420.0,0.55402562]
[1761561079442,0.17563285,115430.0,115420.0,0.55402562]
[1761561079871,0.66198482,115430.0,115420.0,0.58002473]
[1761561080581,0.65387761,115430.0,115420.0,0.58002473]
[1761561081858,0.65387761,115430.0,115420.0,0.58302473]
[1761561082942,0.65387761,115430.0,115420.0,0.40974454]
[1761561084136,0.65387761,115430.0,115420.0,0.58302473]
[1761561086356,0.65387761,115430.0,115420.0,0.40974454]
[1761561089179,0.16752564,115430.0,115420.0,0.40974454]
[1761561089420,0.65387761,115430.0,115420.0,0.40974454]
[1761561091256,0.65387761,115430.0,115420.0,0.58302473]
[1761561091715,0.1732614,115440.0,115430.0,0.17326518]
[1761561091846,0.18189691,115450.0,115430.0,0.17326518]
[1761561092043,0.67634461,115450.0,115440.0,0.15188]
[1761561092263,1.01634461,115450.0,115440.0,0.15188]
[1761561092465,0.34,115450.0,115440.0,0.32513017]
[1761561092774,0.51323516,115450.0,115440.0,0.32513017]
[1761561092929,0.67691869,115460.0,115450.0,0.17323516]
[1761561093289,1.02501167,115460.0,115450.0,0.22867516]
[1761561093496,1.02501167,115460.0,115450.0,0.05544]
[1761561095221,0.68601167,115460.0,115450.0,0.05544]
[1761561096032,0.19097499,115460.0,115450.0,0.22867516]
[1761561096245,0.17323516,115450.0,115440.0,0.02599199]
[1761561096491,0.17325017,115440.0,115430.0,0.38114518]
[1761561096696,0.65958713,115450.0,115440.0,0.22868]
[1761561099044,0.65958713,115450.0,115440.0,0.2294489]
[1761561102888,0.17323516,115450.0,115440.0,0.2294489]
[1761561103091,0.65958713,115450.0,115440.0,0.2294489]
[1761561104263,0.66767841,115450.0,115440.0,0.2294489]